[Event "Titled Tuesday Blitz February 21 Late 2023"]
[White "Bach, Matthias"]
[Black "Zarnicki, Pablo"]
[WhiteFideId "4603168"]
[BlackFideId "100137"]
[WhiteElo "2214"]
[BlackElo "2514"]
[Result "1-0"]
[Round "04"]
[TimeControl "180+2"]
[Date "2023.02.21"]
[WhiteClock "0:00:34"]
[BlackClock "0:00:33"]

1. d4 {[%clk 0:02:53]}  Nf6 {[%clk 0:02:35]} 2. c4 {[%clk 0:02:52]}  e6 {[%clk 0:02:35]} 3. Nc3 {[%clk 0:02:52]}  Bb4 {[%clk 0:02:35]} 4. Bg5 {[%clk 0:02:52]}  h6 {[%clk 0:02:34]} 5. Bh4 {[%clk 0:02:52]}  c5 {[%clk 0:02:34]} 6. d5 {[%clk 0:02:52]}  d6 {[%clk 0:02:35]} 7. e3 {[%clk 0:02:51]}  g5 {[%clk 0:02:32]} 8. Bg3 {[%clk 0:02:50]}  Ne4 {[%clk 0:02:32]} 9. Qc2 {[%clk 0:02:48]}  Qa5 {[%clk 0:02:26]} 10. Ne2 {[%clk 0:02:46]}  e5 {[%clk 0:02:23]} 11. f3 {[%clk 0:02:45]}  Bxc3+ {[%clk 0:02:22]} 12. bxc3 {[%clk 0:02:41]}  Nxg3 {[%clk 0:02:19]} 13. Nxg3 {[%clk 0:02:38]}  Nd7 {[%clk 0:02:13]} 14. Bd3 {[%clk 0:02:36]}  Nb6 {[%clk 0:02:06]} 15. O-O {[%clk 0:02:26]}  Qa4 {[%clk 0:02:03]} 16. Qb3 {[%clk 0:02:17]}  Bd7 {[%clk 0:01:58]} 17. f4 {[%clk 0:02:16]}  f6 {[%clk 0:01:37]} 18. fxe5 {[%clk 0:01:52]}  Qxb3 {[%clk 0:01:34]} 19. axb3 {[%clk 0:01:51]}  fxe5 {[%clk 0:01:34]} 20. Bg6+ {[%clk 0:01:50]}  Kd8 {[%clk 0:01:34]} 21. Rf6 {[%clk 0:01:44]}  Kc7 {[%clk 0:01:32]} 22. Ne4 {[%clk 0:01:44]}  Nc8 {[%clk 0:01:27]} 23. b4 {[%clk 0:01:42]}  b6 {[%clk 0:01:26]} 24. Rf7 {[%clk 0:01:27]}  a5 {[%clk 0:01:23]} 25. Nf6 {[%clk 0:01:23]}  Rd8 {[%clk 0:01:18]} 26. Bf5 {[%clk 0:01:22]}  Ra7 {[%clk 0:01:01]} 27. Nxd7 {[%clk 0:01:20]}  axb4 {[%clk 0:00:55]} 28. Rxa7+ {[%clk 0:01:05]}  Nxa7 {[%clk 0:00:53]} 29. Nxc5+ {[%clk 0:00:55]}  Kb8 {[%clk 0:00:52]} 30. Na6+ {[%clk 0:00:54]}  Ka8 {[%clk 0:00:52]} 31. cxb4 {[%clk 0:00:51]}  h5 {[%clk 0:00:44]} 32. Bd7 {[%clk 0:00:50]}  g4 {[%clk 0:00:36]} 33. b5 {[%clk 0:00:42]}  e4 {[%clk 0:00:36]} 34. Bc6+ {[%clk 0:00:41]}  Nxc6 {[%clk 0:00:35]} 35. bxc6 {[%clk 0:00:41]}  h4 {[%clk 0:00:34]} 36. Rb7 {[%clk 0:00:35]}  g3 {[%clk 0:00:33]} 37. Nc7# {[%clk 0:00:34]} 1-0


[Site "https://www.chess.com"]

[Event "Titled Tuesday Blitz February 21 Late 2023"]
[White "Goroshkov, Maksym"]
[Black "Leonte, Sebastian-Marian"]
[WhiteFideId "14142716"]
[BlackFideId "1268767"]
[WhiteElo "2287"]
[BlackElo "1279"]
[Result "1-0"]
[Round "04"]
[TimeControl "180+2"]
[Date "2023.02.21"]
[WhiteClock "0:00:35"]
[BlackClock "0:00:02"]

1. e4 {[%clk 0:02:57]}  e5 {[%clk 0:02:59]} 2. d4 {[%clk 0:02:57]}  exd4 {[%clk 0:02:58]} 3. c3 {[%clk 0:02:58]}  d3 {[%clk 0:02:48]} 4. Bxd3 {[%clk 0:02:58]}  Nc6 {[%clk 0:02:47]} 5. Nf3 {[%clk 0:02:57]}  Nf6 {[%clk 0:02:41]} 6. e5 {[%clk 0:02:57]}  Ng4 {[%clk 0:02:39]} 7. O-O {[%clk 0:02:50]}  d6 {[%clk 0:02:00]} 8. Bg5 {[%clk 0:02:36]}  f6 {[%clk 0:01:47]} 9. exf6 {[%clk 0:02:34]}  Nxf6 {[%clk 0:01:48]} 10. Nd4 {[%clk 0:02:25]}  Ne5 {[%clk 0:01:32]} 11. Bf5 {[%clk 0:02:09]}  Bxf5 {[%clk 0:01:17]} 12. Nxf5 {[%clk 0:02:10]}  Qd7 {[%clk 0:01:18]} 13. Nd4 {[%clk 0:02:04]}  O-O-O {[%clk 0:01:12]} 14. a4 {[%clk 0:01:51]}  h6 {[%clk 0:01:08]} 15. Bh4 {[%clk 0:01:47]}  g5 {[%clk 0:00:52]} 16. Bg3 {[%clk 0:01:45]}  h5 {[%clk 0:00:45]} 17. Na3 {[%clk 0:01:14]}  Neg4 {[%clk 0:00:34]} 18. h4 {[%clk 0:00:47]}  Ne4 {[%clk 0:00:29]} 19. hxg5 {[%clk 0:00:42]}  Nxg3 {[%clk 0:00:27]} 20. fxg3 {[%clk 0:00:42]}  Ne3 {[%clk 0:00:25]} 21. Qf3 {[%clk 0:00:40]}  Nxf1 {[%clk 0:00:25]} 22. Re1 {[%clk 0:00:41]}  Bg7 {[%clk 0:00:22]} 23. Qxf1 {[%clk 0:00:38]}  Bxd4+ {[%clk 0:00:19]} 24. cxd4 {[%clk 0:00:39]}  Rde8 {[%clk 0:00:18]} 25. Nb5 {[%clk 0:00:37]}  Kb8 {[%clk 0:00:17]} 26. Nc3 {[%clk 0:00:36]}  Rxe1 {[%clk 0:00:16]} 27. Qxe1 {[%clk 0:00:37]}  Re8 {[%clk 0:00:16]} 28. Qf2 {[%clk 0:00:34]}  Qg4 {[%clk 0:00:15]} 29. Qf7 {[%clk 0:00:32]}  Qxd4+ {[%clk 0:00:11]} 30. Kh2 {[%clk 0:00:32]}  Qe5 {[%clk 0:00:04]} 31. Nb5 {[%clk 0:00:33]}  Qe7 {[%clk 0:00:04]} 32. Qf2 {[%clk 0:00:32]}  b6 {[%clk 0:00:03]} 33. Qc2 {[%clk 0:00:32]}  a6 {[%clk 0:00:04]} 34. Nd4 {[%clk 0:00:32]}  Qd7 {[%clk 0:00:02]} 35. Nc6+ {[%clk 0:00:33]}  Kb7 {[%clk 0:00:03]} 36. Nb4 {[%clk 0:00:33]}  Re5 {[%clk 0:00:03]} 37. Qf2 {[%clk 0:00:33]}  Rc5 {[%clk 0:00:02]} 38. Qf3+ {[%clk 0:00:33]}  d5 {[%clk 0:00:02]} 39. Nd3 {[%clk 0:00:34]}  Rc4 {[%clk 0:00:02]} 40. Ne5 {[%clk 0:00:34]}  Qe6 {[%clk 0:00:02]} 41. Nxc4 {[%clk 0:00:35]} 1-0


[Site "https://www.chess.com"]

[Event "Titled Tuesday Blitz February 21 Late 2023"]
[White "Grigoriants, Sergey"]
[Black "Sailer, Mike"]
[WhiteFideId "4130804"]
[BlackFideId "2012901"]
[WhiteElo "2562"]
[BlackElo "2109"]
[Result "1-0"]
[Round "04"]
[TimeControl "180+2"]
[Date "2023.02.21"]
[WhiteClock "0:00:31"]
[BlackClock "0:00:02"]

1. d4 {[%clk 0:02:55]}  d5 {[%clk 0:02:58]} 2. c4 {[%clk 0:02:55]}  Bf5 {[%clk 0:02:58]} 3. cxd5 {[%clk 0:02:50]}  Bxb1 {[%clk 0:02:57]} 4. Rxb1 {[%clk 0:02:50]}  Qxd5 {[%clk 0:02:57]} 5. a3 {[%clk 0:02:45]}  Nc6 {[%clk 0:02:53]} 6. Nf3 {[%clk 0:02:43]}  O-O-O {[%clk 0:02:51]} 7. e3 {[%clk 0:02:40]}  e5 {[%clk 0:02:50]} 8. Be2 {[%clk 0:02:02]}  exd4 {[%clk 0:02:38]} 9. exd4 {[%clk 0:02:02]}  Nxd4 {[%clk 0:02:27]} 10. Nxd4 {[%clk 0:02:00]}  Qxd4 {[%clk 0:02:23]} 11. Qc2 {[%clk 0:01:54]}  Bd6 {[%clk 0:02:02]} 12. O-O {[%clk 0:01:47]}  Nf6 {[%clk 0:01:48]} 13. Bf3 {[%clk 0:01:47]}  Rhe8 {[%clk 0:01:20]} 14. g3 {[%clk 0:01:42]}  Qc5 {[%clk 0:01:12]} 15. Qb3 {[%clk 0:01:37]}  Qb6 {[%clk 0:01:04]} 16. Qxf7 {[%clk 0:01:30]}  Rf8 {[%clk 0:00:57]} 17. Qc4 {[%clk 0:01:28]}  c6 {[%clk 0:00:48]} 18. Be3 {[%clk 0:01:24]}  Qc7 {[%clk 0:00:46]} 19. Bxa7 {[%clk 0:01:15]}  h5 {[%clk 0:00:46]} 20. Be3 {[%clk 0:01:08]}  h4 {[%clk 0:00:45]} 21. Qxh4 {[%clk 0:01:06]}  Rh8 {[%clk 0:00:41]} 22. Qc4 {[%clk 0:01:02]}  Qd7 {[%clk 0:00:26]} 23. h4 {[%clk 0:00:43]}  Qh3 {[%clk 0:00:14]} 24. Bg2 {[%clk 0:00:39]}  Qf5 {[%clk 0:00:14]} 25. Bg5 {[%clk 0:00:36]}  Rdf8 {[%clk 0:00:05]} 26. Rbe1 {[%clk 0:00:35]}  Kb8 {[%clk 0:00:03]} 27. Qe6 {[%clk 0:00:32]}  Qc5 {[%clk 0:00:02]} 28. b4 {[%clk 0:00:31]} 1-0


[Site "https://www.chess.com"]

[Event "Titled Tuesday Blitz February 21 Late 2023"]
[White "Ezat, Mohamed"]
[Black "Oro, Faustino"]
[WhiteFideId "10600906"]
[BlackFideId "20000197"]
[WhiteElo "2402"]
[BlackElo "2269"]
[Result "0-1"]
[Round "04"]
[TimeControl "180+2"]
[Date "2023.02.21"]
[WhiteClock "0:00:13"]
[BlackClock "0:00:17"]

1. d4 {[%clk 0:02:52]}  Nf6 {[%clk 0:03:00]} 2. c4 {[%clk 0:02:53]}  e6 {[%clk 0:03:00]} 3. Nc3 {[%clk 0:02:52]}  d5 {[%clk 0:03:00]} 4. cxd5 {[%clk 0:02:51]}  exd5 {[%clk 0:03:01]} 5. Bg5 {[%clk 0:02:51]}  Be7 {[%clk 0:03:01]} 6. e3 {[%clk 0:02:51]}  O-O {[%clk 0:03:02]} 7. Bd3 {[%clk 0:02:51]}  Re8 {[%clk 0:03:02]} 8. Nge2 {[%clk 0:02:50]}  h6 {[%clk 0:02:59]} 9. Bxf6 {[%clk 0:02:48]}  Bxf6 {[%clk 0:02:59]} 10. O-O {[%clk 0:02:49]}  c6 {[%clk 0:02:59]} 11. b4 {[%clk 0:02:47]}  Nd7 {[%clk 0:02:59]} 12. b5 {[%clk 0:02:47]}  Nf8 {[%clk 0:02:53]} 13. bxc6 {[%clk 0:02:47]}  bxc6 {[%clk 0:02:54]} 14. Qc2 {[%clk 0:02:46]}  Qd6 {[%clk 0:02:41]} 15. Na4 {[%clk 0:02:45]}  Ne6 {[%clk 0:02:38]} 16. Rfc1 {[%clk 0:02:45]}  Bd7 {[%clk 0:02:38]} 17. Rab1 {[%clk 0:02:32]}  Reb8 {[%clk 0:02:26]} 18. Bf5 {[%clk 0:02:30]}  Be7 {[%clk 0:02:07]} 19. h3 {[%clk 0:02:15]}  Be8 {[%clk 0:01:55]} 20. Rb3 {[%clk 0:01:59]}  Nc7 {[%clk 0:01:46]} 21. Nc5 {[%clk 0:01:57]}  g6 {[%clk 0:01:30]} 22. Bd3 {[%clk 0:01:56]}  Qf6 {[%clk 0:01:29]} 23. Rcb1 {[%clk 0:01:44]}  Rxb3 {[%clk 0:01:26]} 24. Rxb3 {[%clk 0:01:42]}  Bd6 {[%clk 0:01:26]} 25. e4 {[%clk 0:01:38]}  dxe4 {[%clk 0:01:16]} 26. Nxe4 {[%clk 0:01:37]}  Qe7 {[%clk 0:01:16]} 27. Rb7 {[%clk 0:01:28]}  Qd8 {[%clk 0:00:50]} 28. Bc4 {[%clk 0:00:46]}  Bf8 {[%clk 0:00:44]} 29. Nc5 {[%clk 0:00:45]}  Nd5 {[%clk 0:00:41]} 30. Nc3 {[%clk 0:00:42]}  Bg7 {[%clk 0:00:31]} 31. Bxd5 {[%clk 0:00:33]}  cxd5 {[%clk 0:00:32]} 32. Qd3 {[%clk 0:00:33]}  Bc6 {[%clk 0:00:30]} 33. Rb1 {[%clk 0:00:31]}  Qf6 {[%clk 0:00:30]} 34. Rd1 {[%clk 0:00:31]}  Re8 {[%clk 0:00:28]} 35. Qa6 {[%clk 0:00:30]}  Qd6 {[%clk 0:00:22]} 36. Nb5 {[%clk 0:00:26]}  Qf6 {[%clk 0:00:21]} 37. Nc7 {[%clk 0:00:26]}  Re7 {[%clk 0:00:16]} 38. N7e6 {[%clk 0:00:25]}  Rxe6 {[%clk 0:00:15]} 39. Nxe6 {[%clk 0:00:24]}  Qxe6 {[%clk 0:00:16]} 40. Qxa7 {[%clk 0:00:23]}  Kh7 {[%clk 0:00:13]} 41. Qb6 {[%clk 0:00:23]}  Ba4 {[%clk 0:00:12]} 42. Qxe6 {[%clk 0:00:22]}  fxe6 {[%clk 0:00:13]} 43. Rd3 {[%clk 0:00:22]}  Bc2 {[%clk 0:00:10]} 44. Rd2 {[%clk 0:00:22]}  Ba4 {[%clk 0:00:10]} 45. Re2 {[%clk 0:00:22]}  Bd7 {[%clk 0:00:08]} 46. Rd2 {[%clk 0:00:21]}  Kg8 {[%clk 0:00:08]} 47. a3 {[%clk 0:00:21]}  Kf7 {[%clk 0:00:09]} 48. Ra2 {[%clk 0:00:21]}  Bxd4 {[%clk 0:00:09]} 49. a4 {[%clk 0:00:22]}  Ke7 {[%clk 0:00:09]} 50. a5 {[%clk 0:00:22]}  e5 {[%clk 0:00:10]} 51. a6 {[%clk 0:00:22]}  Ba7 {[%clk 0:00:10]} 52. Rb2 {[%clk 0:00:22]}  Bc6 {[%clk 0:00:11]} 53. Kf1 {[%clk 0:00:19]}  Kd6 {[%clk 0:00:11]} 54. Ke1 {[%clk 0:00:18]}  d4 {[%clk 0:00:12]} 55. Kd2 {[%clk 0:00:18]}  e4 {[%clk 0:00:12]} 56. Rb1 {[%clk 0:00:15]}  e3+ {[%clk 0:00:11]} 57. fxe3 {[%clk 0:00:11]}  dxe3+ {[%clk 0:00:12]} 58. Ke2 {[%clk 0:00:10]}  Bxg2 {[%clk 0:00:12]} 59. Rg1 {[%clk 0:00:09]}  Be4 {[%clk 0:00:13]} 60. Rg4 {[%clk 0:00:09]}  Bf5 {[%clk 0:00:12]} 61. Rb4 {[%clk 0:00:09]}  Bc8 {[%clk 0:00:12]} 62. Ra4 {[%clk 0:00:07]}  Kc5 {[%clk 0:00:12]} 63. Ra1 {[%clk 0:00:07]}  Kb5 {[%clk 0:00:12]} 64. Rb1+ {[%clk 0:00:07]}  Kxa6 {[%clk 0:00:13]} 65. Ra1+ {[%clk 0:00:07]}  Kb7 {[%clk 0:00:14]} 66. Rb1+ {[%clk 0:00:08]}  Bb6 {[%clk 0:00:14]} 67. Rc1 {[%clk 0:00:08]}  Bxh3 {[%clk 0:00:14]} 68. Rg1 {[%clk 0:00:07]}  g5 {[%clk 0:00:14]} 69. Rh1 {[%clk 0:00:07]}  Bg4+ {[%clk 0:00:14]} 70. Ke1 {[%clk 0:00:08]}  h5 {[%clk 0:00:15]} 71. Rg1 {[%clk 0:00:06]}  Ba5+ {[%clk 0:00:15]} 72. Kf1 {[%clk 0:00:06]}  e2+ {[%clk 0:00:16]} 73. Kg2 {[%clk 0:00:07]}  e1=Q {[%clk 0:00:16]} 74. Rxe1 {[%clk 0:00:08]}  Bxe1 {[%clk 0:00:17]} 75. Kh2 {[%clk 0:00:08]}  Ba5 {[%clk 0:00:17]} 76. Kg3 {[%clk 0:00:08]}  Bc7+ {[%clk 0:00:17]} 77. Kg2 {[%clk 0:00:09]}  Bf5 {[%clk 0:00:17]} 78. Kh1 {[%clk 0:00:10]}  Be4+ {[%clk 0:00:17]} 79. Kg1 {[%clk 0:00:11]}  h4 {[%clk 0:00:17]} 80. Kf2 {[%clk 0:00:12]}  g4 {[%clk 0:00:17]} 81. Kg1 {[%clk 0:00:13]}  Bb6+ {[%clk 0:00:17]} 82. Kh2 {[%clk 0:00:12]}  g3+ {[%clk 0:00:17]} 83. Kh3 {[%clk 0:00:13]}  g2 {[%clk 0:00:17]} 84. Kxh4 {[%clk 0:00:12]}  g1=Q {[%clk 0:00:17]} 85. Kh5 {[%clk 0:00:12]}  Qg6+ {[%clk 0:00:16]} 86. Kh4 {[%clk 0:00:13]}  Bf2+ {[%clk 0:00:17]} 87. Kh3 {[%clk 0:00:13]}  Qg3# {[%clk 0:00:17]} 0-1


[Site "https://www.chess.com"]

[Event "Titled Tuesday Blitz February 21 Late 2023"]
[White "reevecanada"]
[Black "Averjanov, Alexey"]
[BlackFideId "14109867"]
[WhiteElo "2441"]
[BlackElo "2399"]
[Result "0-1"]
[Round "04"]
[TimeControl "180+2"]
[Date "2023.02.21"]
[WhiteClock "0:00:49"]
[BlackClock "0:01:09"]

1. e4 {[%clk 0:03:00]}  c6 {[%clk 0:02:59]} 2. c4 {[%clk 0:02:59]}  d5 {[%clk 0:02:59]} 3. cxd5 {[%clk 0:02:59]}  cxd5 {[%clk 0:03:00]} 4. exd5 {[%clk 0:02:59]}  Nf6 {[%clk 0:03:00]} 5. Nc3 {[%clk 0:02:59]}  Nxd5 {[%clk 0:03:00]} 6. Nf3 {[%clk 0:02:58]}  Nc6 {[%clk 0:02:58]} 7. Bb5 {[%clk 0:02:58]}  g6 {[%clk 0:02:56]} 8. Qa4 {[%clk 0:02:57]}  Nb6 {[%clk 0:02:50]} 9. Qh4 {[%clk 0:02:55]}  Bg7 {[%clk 0:02:46]} 10. O-O {[%clk 0:02:53]}  O-O {[%clk 0:02:46]} 11. Bxc6 {[%clk 0:02:52]}  bxc6 {[%clk 0:02:47]} 12. d4 {[%clk 0:02:52]}  Nd5 {[%clk 0:02:44]} 13. Bh6 {[%clk 0:02:50]}  Bf6 {[%clk 0:02:36]} 14. Qe4 {[%clk 0:02:40]}  Bf5 {[%clk 0:02:34]} 15. Qe2 {[%clk 0:02:39]}  Nxc3 {[%clk 0:02:28]} 16. bxc3 {[%clk 0:02:38]}  Bg7 {[%clk 0:02:25]} 17. Bxg7 {[%clk 0:02:37]}  Kxg7 {[%clk 0:02:26]} 18. Nh4 {[%clk 0:02:36]}  Be6 {[%clk 0:02:22]} 19. Rfd1 {[%clk 0:02:33]}  Qd6 {[%clk 0:02:18]} 20. c4 {[%clk 0:02:29]}  Rfd8 {[%clk 0:02:11]} 21. Qe3 {[%clk 0:02:15]}  Rab8 {[%clk 0:02:06]} 22. h3 {[%clk 0:02:08]}  Bxc4 {[%clk 0:02:04]} 23. Qg5 {[%clk 0:01:52]}  Qf6 {[%clk 0:02:00]} 24. Qg3 {[%clk 0:01:46]}  Rb2 {[%clk 0:01:47]} 25. Rac1 {[%clk 0:01:30]}  Bd5 {[%clk 0:01:37]} 26. a4 {[%clk 0:01:25]}  Rdb8 {[%clk 0:01:33]} 27. Kh2 {[%clk 0:01:18]}  Qxf2 {[%clk 0:01:22]} 28. Qe5+ {[%clk 0:01:12]}  Kg8 {[%clk 0:01:15]} 29. Rd2 {[%clk 0:00:49]}  Qxd2 {[%clk 0:01:09]} 0-1


[Site "https://www.chess.com"]

[Event "Titled Tuesday Blitz February 21 Late 2023"]
[White "sissahungrychess"]
[Black "Domingo Nunez, Ruben"]
[BlackFideId "22245570"]
[WhiteElo "2453"]
[BlackElo "2416"]
[Result "1-0"]
[Round "04"]
[TimeControl "180+2"]
[Date "2023.02.21"]
[WhiteClock "0:01:14"]
[BlackClock "0:00:17"]

1. c4 {[%clk 0:03:00]}  g6 {[%clk 0:02:54]} 2. g3 {[%clk 0:03:00]}  Bg7 {[%clk 0:02:55]} 3. Bg2 {[%clk 0:03:00]}  d6 {[%clk 0:02:56]} 4. Nf3 {[%clk 0:03:01]}  Nd7 {[%clk 0:02:57]} 5. O-O {[%clk 0:03:02]}  Ngf6 {[%clk 0:02:58]} 6. Nc3 {[%clk 0:03:02]}  O-O {[%clk 0:02:58]} 7. d4 {[%clk 0:03:03]}  c5 {[%clk 0:02:59]} 8. e3 {[%clk 0:02:56]}  Rb8 {[%clk 0:02:59]} 9. Re1 {[%clk 0:02:55]}  a6 {[%clk 0:03:00]} 10. dxc5 {[%clk 0:02:53]}  Nxc5 {[%clk 0:03:01]} 11. Nd4 {[%clk 0:02:48]}  Bd7 {[%clk 0:03:01]} 12. b3 {[%clk 0:02:40]}  b5 {[%clk 0:03:01]} 13. cxb5 {[%clk 0:02:40]}  axb5 {[%clk 0:03:01]} 14. Bb2 {[%clk 0:02:38]}  b4 {[%clk 0:03:01]} 15. Nce2 {[%clk 0:02:31]}  Qa5 {[%clk 0:02:58]} 16. Nc6 {[%clk 0:02:22]}  Bxc6 {[%clk 0:02:58]} 17. Bxc6 {[%clk 0:02:23]}  Rfc8 {[%clk 0:02:59]} 18. Bg2 {[%clk 0:02:23]}  Qa6 {[%clk 0:02:54]} 19. Nf4 {[%clk 0:02:15]}  Ne6 {[%clk 0:02:33]} 20. Bf1 {[%clk 0:02:12]}  Qa7 {[%clk 0:02:31]} 21. Nxe6 {[%clk 0:02:05]}  fxe6 {[%clk 0:02:32]} 22. Bh3 {[%clk 0:02:00]}  Kf7 {[%clk 0:02:30]} 23. e4 {[%clk 0:01:50]}  Qc5 {[%clk 0:00:30]} 24. e5 {[%clk 0:01:41]}  Ne8 {[%clk 0:00:26]} 25. Bxe6+ {[%clk 0:01:32]}  Kxe6 {[%clk 0:00:23]} 26. exd6+ {[%clk 0:01:28]}  Kd7 {[%clk 0:00:16]} 27. Rxe7+ {[%clk 0:01:21]}  Kd8 {[%clk 0:00:17]} 28. Bxg7 {[%clk 0:01:17]}  Qxd6 {[%clk 0:00:17]} 29. Rxe8+ {[%clk 0:01:14]} 1-0


[Site "https://www.chess.com"]

[Event "Titled Tuesday Blitz February 21 Late 2023"]
[White "Prydun, Andriy"]
[Black "Maltsevskaya, Aleksandra"]
[WhiteFideId "14145898"]
[BlackFideId "24174041"]
[WhiteElo "2134"]
[BlackElo "2390"]
[Result "0-1"]
[Round "04"]
[TimeControl "180+2"]
[Date "2023.02.21"]
[WhiteClock "0:00:02"]
[BlackClock "0:01:10"]

1. e4 {[%clk 0:03:00]}  c6 {[%clk 0:02:57]} 2. d4 {[%clk 0:03:00]}  d5 {[%clk 0:02:57]} 3. e5 {[%clk 0:03:01]}  Bf5 {[%clk 0:02:56]} 4. Bd3 {[%clk 0:03:01]}  Bxd3 {[%clk 0:02:56]} 5. cxd3 {[%clk 0:03:02]}  e6 {[%clk 0:02:52]} 6. Nc3 {[%clk 0:03:03]}  h5 {[%clk 0:02:53]} 7. Nce2 {[%clk 0:02:52]}  Ne7 {[%clk 0:02:53]} 8. Nf4 {[%clk 0:02:50]}  Nf5 {[%clk 0:02:50]} 9. Nf3 {[%clk 0:02:46]}  h4 {[%clk 0:02:43]} 10. h3 {[%clk 0:02:39]}  Bb4+ {[%clk 0:02:33]} 11. Bd2 {[%clk 0:02:38]}  a5 {[%clk 0:02:32]} 12. a3 {[%clk 0:02:26]}  Be7 {[%clk 0:02:29]} 13. Rc1 {[%clk 0:02:10]}  Qb6 {[%clk 0:02:25]} 14. Bc3 {[%clk 0:02:08]}  Qa6 {[%clk 0:02:07]} 15. O-O {[%clk 0:01:46]}  b5 {[%clk 0:02:07]} 16. Qb3 {[%clk 0:01:14]}  b4 {[%clk 0:01:54]} 17. axb4 {[%clk 0:01:13]}  axb4 {[%clk 0:01:55]} 18. Bd2 {[%clk 0:01:13]}  Nd7 {[%clk 0:01:52]} 19. Ra1 {[%clk 0:01:12]}  Qxa1 {[%clk 0:01:50]} 20. Rxa1 {[%clk 0:01:11]}  Rxa1+ {[%clk 0:01:51]} 21. Kh2 {[%clk 0:01:11]}  O-O {[%clk 0:01:51]} 22. Qc2 {[%clk 0:01:06]}  c5 {[%clk 0:01:47]} 23. dxc5 {[%clk 0:01:02]}  Bxc5 {[%clk 0:01:42]} 24. d4 {[%clk 0:00:14]}  Nxd4 {[%clk 0:01:40]} 25. Nxd4 {[%clk 0:00:14]}  Bxd4 {[%clk 0:01:41]} 26. Nd3 {[%clk 0:00:11]}  Nxe5 {[%clk 0:01:36]} 27. Bxb4 {[%clk 0:00:05]}  Nxd3 {[%clk 0:01:34]} 28. Qxd3 {[%clk 0:00:06]}  Bxf2 {[%clk 0:01:35]} 29. g4 {[%clk 0:00:05]}  hxg3+ {[%clk 0:01:35]} 30. Kg2 {[%clk 0:00:05]}  Rg1+ {[%clk 0:01:33]} 31. Kf3 {[%clk 0:00:06]}  Rh1 {[%clk 0:01:34]} 32. Bxf8 {[%clk 0:00:04]}  Kxf8 {[%clk 0:01:30]} 33. Qa3+ {[%clk 0:00:04]}  Kg8 {[%clk 0:01:30]} 34. Qe7 {[%clk 0:00:04]}  g6 {[%clk 0:01:28]} 35. Qd8+ {[%clk 0:00:03]}  Kg7 {[%clk 0:01:29]} 36. Qb8 {[%clk 0:00:03]}  Rxh3 {[%clk 0:01:27]} 37. Qe5+ {[%clk 0:00:03]}  Kg8 {[%clk 0:01:27]} 38. Qb8+ {[%clk 0:00:03]}  Kg7 {[%clk 0:01:17]} 39. Qe5+ {[%clk 0:00:03]}  Kh7 {[%clk 0:01:17]} 40. Qf6 {[%clk 0:00:03]}  Kg8 {[%clk 0:01:17]} 41. Qd8+ {[%clk 0:00:03]}  Kg7 {[%clk 0:01:18]} 42. Qb8 {[%clk 0:00:02]}  Rh5 {[%clk 0:01:18]} 43. Qd6 {[%clk 0:00:02]}  Rf5+ {[%clk 0:01:17]} 44. Kg2 {[%clk 0:00:02]}  Bd4 {[%clk 0:01:18]} 45. Qxg3 {[%clk 0:00:02]}  Bxb2 {[%clk 0:01:17]} 46. Qb3 {[%clk 0:00:01]}  Bf6 {[%clk 0:01:15]} 47. Kg3 {[%clk 0:00:01]}  d4 {[%clk 0:01:15]} 48. Kg4 {[%clk 0:00:02]}  e5 {[%clk 0:01:15]} 49. Kg3 {[%clk 0:00:02]}  e4 {[%clk 0:01:15]} 50. Kg4 {[%clk 0:00:02]}  e3 {[%clk 0:01:16]} 51. Qd3 {[%clk 0:00:03]}  Be5 {[%clk 0:01:13]} 52. Qe2 {[%clk 0:00:03]}  Rf2 {[%clk 0:01:10]} 53. Qe1 {[%clk 0:00:02]}  f5+ {[%clk 0:01:10]} 54. Kh4 {[%clk 0:00:02]}  Rh2+ {[%clk 0:01:11]} 55. Kg5 {[%clk 0:00:02]}  Rh5# {[%clk 0:01:10]} 0-1


[Site "https://www.chess.com"]

[Event "Titled Tuesday Blitz February 21 Late 2023"]
[White "Fernandez Garcia, Gumersindo"]
[Black "Petukhov, Dmitry"]
[WhiteFideId "24516740"]
[BlackFideId "4142748"]
[WhiteElo "2160"]
[BlackElo "2350"]
[Result "1-0"]
[Round "04"]
[TimeControl "180+2"]
[Date "2023.02.21"]
[WhiteClock "0:00:17"]
[BlackClock "0:00:02"]

1. e4 {[%clk 0:03:00]}  c5 {[%clk 0:02:59]} 2. Nf3 {[%clk 0:02:59]}  d6 {[%clk 0:03:00]} 3. c3 {[%clk 0:02:59]}  Nf6 {[%clk 0:02:59]} 4. Be2 {[%clk 0:02:58]}  e5 {[%clk 0:02:58]} 5. O-O {[%clk 0:02:55]}  Be7 {[%clk 0:02:58]} 6. d4 {[%clk 0:02:34]}  Qc7 {[%clk 0:02:57]} 7. dxe5 {[%clk 0:02:31]}  dxe5 {[%clk 0:02:57]} 8. Qc2 {[%clk 0:02:31]}  O-O {[%clk 0:02:56]} 9. Bg5 {[%clk 0:02:29]}  h6 {[%clk 0:02:51]} 10. Bxf6 {[%clk 0:02:28]}  Bxf6 {[%clk 0:02:52]} 11. Rd1 {[%clk 0:02:25]}  Nc6 {[%clk 0:02:47]} 12. Nbd2 {[%clk 0:02:22]}  Ne7 {[%clk 0:02:28]} 13. Nc4 {[%clk 0:02:17]}  Ng6 {[%clk 0:02:27]} 14. Ne3 {[%clk 0:02:13]}  Nf4 {[%clk 0:02:09]} 15. Bc4 {[%clk 0:02:11]}  Be6 {[%clk 0:02:06]} 16. Nd5 {[%clk 0:02:07]}  Nxd5 {[%clk 0:01:52]} 17. Bxd5 {[%clk 0:02:04]}  Bg4 {[%clk 0:01:48]} 18. Qe2 {[%clk 0:01:50]}  Rad8 {[%clk 0:01:38]} 19. h3 {[%clk 0:01:50]}  Bh5 {[%clk 0:01:37]} 20. g4 {[%clk 0:01:41]}  Bg6 {[%clk 0:01:36]} 21. Nh2 {[%clk 0:01:40]}  b6 {[%clk 0:01:35]} 22. Nf1 {[%clk 0:01:40]}  Bg5 {[%clk 0:01:35]} 23. Ng3 {[%clk 0:01:30]}  Bf4 {[%clk 0:01:30]} 24. Nf5 {[%clk 0:01:27]}  Kh7 {[%clk 0:01:27]} 25. Kh1 {[%clk 0:01:26]}  f6 {[%clk 0:01:15]} 26. a4 {[%clk 0:01:19]}  Bf7 {[%clk 0:01:13]} 27. c4 {[%clk 0:01:17]}  g6 {[%clk 0:01:10]} 28. Ne3 {[%clk 0:01:15]}  Bxe3 {[%clk 0:01:01]} 29. fxe3 {[%clk 0:01:12]}  Bxd5 {[%clk 0:01:02]} 30. exd5 {[%clk 0:01:12]}  e4 {[%clk 0:00:59]} 31. Qh2 {[%clk 0:01:08]}  Qxh2+ {[%clk 0:00:52]} 32. Kxh2 {[%clk 0:01:07]}  f5 {[%clk 0:00:53]} 33. Rf1 {[%clk 0:01:03]}  Kg7 {[%clk 0:00:48]} 34. gxf5 {[%clk 0:01:00]}  Rxf5 {[%clk 0:00:46]} 35. Rxf5 {[%clk 0:00:58]}  gxf5 {[%clk 0:00:47]} 36. a5 {[%clk 0:00:58]}  b5 {[%clk 0:00:39]} 37. cxb5 {[%clk 0:00:39]}  Rxd5 {[%clk 0:00:39]} 38. Rc1 {[%clk 0:00:40]}  Kf6 {[%clk 0:00:31]} 39. Kg3 {[%clk 0:00:39]}  Ke5 {[%clk 0:00:29]} 40. b6 {[%clk 0:00:38]}  axb6 {[%clk 0:00:29]} 41. axb6 {[%clk 0:00:38]}  Kd6 {[%clk 0:00:29]} 42. b7 {[%clk 0:00:24]}  Kc7 {[%clk 0:00:28]} 43. b4 {[%clk 0:00:24]}  Kxb7 {[%clk 0:00:22]} 44. Rxc5 {[%clk 0:00:24]}  Rd3 {[%clk 0:00:12]} 45. Kf4 {[%clk 0:00:24]}  Rd1 {[%clk 0:00:13]} 46. Rxf5 {[%clk 0:00:23]}  Rf1+ {[%clk 0:00:08]} 47. Kxe4 {[%clk 0:00:23]}  Rb1 {[%clk 0:00:06]} 48. Rb5+ {[%clk 0:00:23]}  Kc6 {[%clk 0:00:06]} 49. Rc5+ {[%clk 0:00:23]}  Kd6 {[%clk 0:00:06]} 50. Rc4 {[%clk 0:00:24]}  Rh1 {[%clk 0:00:05]} 51. Rd4+ {[%clk 0:00:23]}  Kc6 {[%clk 0:00:05]} 52. Kf5 {[%clk 0:00:19]}  Rxh3 {[%clk 0:00:05]} 53. e4 {[%clk 0:00:20]}  h5 {[%clk 0:00:05]} 54. e5 {[%clk 0:00:20]}  h4 {[%clk 0:00:02]} 55. Re4 {[%clk 0:00:20]}  Kd7 {[%clk 0:00:02]} 56. e6+ {[%clk 0:00:20]}  Ke7 {[%clk 0:00:02]} 57. Rc4 {[%clk 0:00:18]}  Rf3+ {[%clk 0:00:02]} 58. Kg4 {[%clk 0:00:18]}  Rf1 {[%clk 0:00:02]} 59. Kxh4 {[%clk 0:00:16]}  Kxe6 {[%clk 0:00:02]} 60. Rd4 {[%clk 0:00:17]} 1-0


[Site "https://www.chess.com"]